Cogmind - Beta 17 @@@ ROGUE MODE // 2026.07.07 @ 16:02:50 Player: Pitt Result: Destroyed by G-47 Trooper with Particle Gun Performance ------------- Evolutions (1) 500 Regions Visited (2) 400 Robots Destroyed (18) 90 Value Destroyed (266) 266 Prototype IDs (0) 0 Alien Tech Used (0) 0 Bonus (0) 0 TOTAL SCORE: 1256 Bonus ------- None Cogmind --------- Core Integrity 0/400 Matter 65/300 Energy 99/100 System Corruption 0% Temperature Cool (9) Movement Core (250) Ox4 Location -9/Materials Parts ------- > --- POWER (1) -------- (None) > --- PROPULSION (4) --- (None) > --- UTILITY (2) ------ Medium Storage Unit Propulsion Shielding > --- WEAPON (2) ------- Light Assault Rifle Light Assault Rifle > --- INVENTORY (10) --- Structural Scanner Machine Analyzer Sensor Array Improved Terrain Scanner Propulsion Shielding Recalibrator Spread Laser Datajack Peak State ------------ > --- POWER ------------ Light Ion Engine > --- PROPULSION ------- VTOL Module VTOL Module VTOL Module VTOL Module > --- UTILITY ---------- Medium Storage Unit Improved Terrain Scanner > --- WEAPON ----------- Light Assault Rifle Light Assault Rifle > --- INVENTORY -------- Aluminum Leg Aluminum Leg Sensor Array Propulsion Shielding Datajack Mining Laser [Rating: 15] Favorites ----------- Power Light Ion Engine Engine Light Ion Engine Propulsion VTOL Module Leg Aluminum Leg Flight Unit VTOL Module Utility Improved Terrain Scanner Device Improved Terrain Scanner Storage Medium Storage Unit Protection Propulsion Shielding Weapon Light Assault Rifle Energy Gun Spread Laser Ballistic Gun Light Assault Rifle Special Weapon Mining Laser Special Melee Weapon Datajack Build | -11 -10 -9 ------- Run | Yrd Mat Mat Slots Evolved 2 | . . 2 Power . | . . . Propulsion 2 | . . 2 Utility . | . . . Weapon . | . . . Parts Attached 21 | 6 7 8 Power 2 | 1 1 . Engine 2 | 1 1 . Core . | . . . Reactor . | . . . Propulsion 8 | 2 2 4 Treads . | . . . Leg 4 | 2 2 . Wheel . | . . . Hover . | . . . Flight 4 | . . 4 Utility 6 | 1 2 3 Device 2 | . 1 1 Storage 2 | 1 1 . Processor . | . . . Hackware . | . . . Protection 2 | . . 2 Artifact . | . . . Weapon 5 | 2 2 1 Energy Gun 1 | . . 1 Energy Cannon . | . . . Ballistic Gun 2 | 2 . . Ballistic Cannon . | . . . Launcher . | . . . Special Weapon 1 | . 1 . Impact Weapon . | . . . Slashing Weapon . | . . . Piercing Weapon . | . . . Special Melee Weapon 1 | . 1 . Unidentified Prototypes . | . . . Parts Lost 6 | . . 6 Power 1 | . . 1 Propulsion 4 | . . 4 Utility . | . . . Weapon 1 | . . 1 Highest Loss Streak 6 | . . 6 To Critical Strikes . | . . . Average Backups 6 | 2 7 6 Power . | . . . Propulsion 2 | . 4 1 Utility 2 | 1 1 2 Weapon 1 | . 1 1 Tool/Special . | . . . Unused Backups 6 | 1 2 3 Power . | . . . Propulsion . | . . . Utility 5 | 1 1 3 Weapon 1 | . 1 . Tool/Special . | . . . Average Slot Usage (%) 93 | . 97 91 Engine 11 | . 14 9 Leg 11 | . 26 . Flight 23 | . . 40 Device 11 | . 13 9 Storage 12 | . 14 11 Ballistic Gun 21 | . 27 16 Peak Build Rating 15 | 6 10 15 Average Rating 11 | 5 9 13 On Entrance 5 | . 6 10 Avg Prop Armor Cover (%) . | . . . Naked Turns . | . . . Heaviest Build 18 | 10 16 18 Greatest Support 20 | 20 20 16 Greatest Overweight (x) 4 | . 1 4 Average Overweight (x) . | . . . Largest Inventory Capacity 10 | 8 10 10 Average Capacity 9 | 7 8 10 Most Carried 10 | 5 8 10 Average Carried 6 | 3 7 6 Final Capacity 10 | 8 10 10 Final Carried 8 | 5 8 8 Class Distribution -------------------- 43% | Sprinter 39% | Mutant 17% | Scavenger-Mutant Dominant Class ---------------- Mutant | -10/Materials Sprinter | -9/Materials Resources | -11 -10 -9 ----------- Run | Yrd Mat Mat Matter Collected 420 | 219 113 88 Remotely . | . . . Salvage Created 477 | 159 188 130 Parts 49 | 17 16 16 Haulers Intercepted . | . . . Recyclers Shooed . | . . . Parts Field Recycled . | . . . Retrieved Matter . | . . . Parts Self-Destructed . | . . . Prevented . | . . . Parts Restored . | . . . Kills | -11 -10 -9 ------- Run | Yrd Mat Mat Combat Hostiles Destroyed 8 | . 7 1 Guns 8 | . 7 1 Classes Destroyed 8 | 2 3 3 Builder 2 | . . 2 Tunneler 5 | 5 . . Recycler 1 | 1 . . Mechanic 1 | . . 1 Operator 1 | . 1 . Swarmer 5 | . 5 . Grunt 2 | . 2 . Sentry 1 | . . 1 Best Kill Streak 3 | 2 3 2 Combat Bots Only 3 | . 3 1 Max Kills in Single Turn 1 | 1 1 1 Gunslinging . | . . . Exploded . | . . . Melee . | . . . Uniques/NPCs Destroyed . | . . . Combat | -11 -10 -9 -------- Run | Yrd Mat Mat Hostile Shots Fired 117 | . 45 72 Missed 33 | . 13 20 Hits 84 | . 32 52 Projectile 84 | . 32 52 Critical Strikes 3 | . . 3 Damage Taken 1045 | . 292 753 Core 463 | . 61 402 Absorbed by Shields . | . . . Redirected to Shielding 27 | . . 27 Regen/Repaired (Parts) 172 | . 106 66 Core Remaining (%) 87 | 100 75 . Volleys Fired 90 | 27 25 38 Largest 2 | 2 2 2 Hottest 100 | 40 100 100 Shots Fired 156 | 54 48 54 Gun 142 | 54 46 42 Cannon . | . . . Launcher . | . . . Special 14 | . 2 12 Kinetic 137 | 54 46 37 Thermal 19 | . 2 17 Explosive . | . . . Electromagnetic . | . . . Robot Hit Streak 13 | 10 13 13 Robot Miss Streak 7 | 4 3 7 Penetration Max . | . . . Secondary Targets 3 | . 2 1 Max Gunslinging Chain 1 | . 1 1 Shots Hit Robots 93 | 32 29 32 Core Hits 37 | 12 13 12 Critical Kills . | . . . Critical Parts Destroyed . | . . . Critical Strikes . | . . . Melee Attacks . | . . . Impact . | . . . Slashing . | . . . Piercing . | . . . Sneak Attacks . | . . . Combat Hostiles . | . . . Follow-up Attacks . | . . . Damage Inflicted 793 | 264 243 286 Guns 781 | 264 243 274 Cannons . | . . . Explosions . | . . . Melee . | . . . Ramming 12 | . . 12 Kinetic 727 | 264 243 220 Thermal 54 | . . 54 Explosive . | . . . Electromagnetic . | . . . Impact . | . . . Slashing . | . . . Piercing . | . . . Highest Corruption . | . . . Average Corruption . | . . . Corruption Purged . | . . . Corruption Blocked . | . . . Overload Shots . | . . . Overflow Damage . | . . . Projectiles . | . . . Explosions . | . . . Melee . | . . . Knockbacks . | . . . Impact . | . . . Kinetic . | . . . Secondary . | . . . Self-Inflicted Damage 6 | . . 6 Shots . | . . . Rammed 1 | . . 1 Targets Rammed 1 | . . 1 Kicked . | . . . Crushed . | . . . Highest Temperature 110 | . 40 110 Average Temperature 34 | . 14 37 Received Heat Transfer 357 | . 57 300 Siege Activations . | . . . Martial Activations . | . . . Shielding Activations . | . . . Robots Disrupted . | . . . Combat Hostiles . | . . . Robots Corrupted . | . . . Combat Hostiles . | . . . Parts Fried . | . . . Impact Corruptions . | . . . Robots Melted . | . . . Combat Hostiles . | . . . Parts Melted . | . . . Heat Transferred 70 | . . 70 Parts Sabotaged . | . . . Parts Stolen . | . . . Parts Stripped . | . . . Power Chain Reactions . | . . . Alert | -11 -10 -9 ------- Run | Yrd Mat Mat Maximum Alert Level . | . . . Low Security (%) 100 | 100 100 100 Level 1 . | . . . Level 2 . | . . . Level 3 . | . . . Level 4 . | . . . Level 5 . | . . . High Security . | . . . Max Security . | . . . Peak Influence 134 | 10 62 134 Initial 6 | . 6 4 Average 11 | 1 19 9 Influence Increases 508 | 30 236 242 Destroy 0b10 Robot/C 160 | . 140 20 Destroy 0b10 Robot/NC 50 | 30 5 15 Destroy Leader 40 | . 30 10 Successful Hack 52 | . 31 21 Disable Machine 15 | . 15 . Destroy Structure 11 | . . 11 Lose Combat Pursuer 180 | . 15 165 Influence Decreases 380 | 20 235 125 Entered New Map 11 | . 4 7 Time Decay 319 | 20 231 68 Lost Part 50 | . . 50 Squads Dispatched 5 | . 2 3 Investigation 2 | . 1 1 Extermination . | . . . Reinforcement 3 | . 1 2 Assault . | . . . Garrison . | . . . Intercept . | . . . Searches Triggered . | . . . Construction Impeded 1 | . . 1 Haulers Reinforced . | . . . Active Scanning Responses . | . . . Cargo Convoy Interrupts . | . . . Stealth | -11 -10 -9 --------- Run | Yrd Mat Mat Distress Signals 3 | . 1 2 Communications Jammed . | . . . Distress Signals . | . . . Times Spotted 43 | . 17 26 Peak Tracking Total 11 | . 6 11 Tactical Retreats 4 | . 1 3 Traps | -11 -10 -9 ------- Run | Yrd Mat Mat Traps Triggered 2 | . 1 1 Indirectly . | . . . Trap Hack Attempts . | . . . Triggered . | . . . Disarmed . | . . . Reprogrammed . | . . . Reused . | . . . Traps Extracted . | . . . Installed . | . . . Triggered . | . . . Machines | -11 -10 -9 ---------- Run | Yrd Mat Mat Machines Disabled 1 | . 1 . Max in Single Turn 1 | . 1 . Machines Repaired . | . . . Machines Dismantled . | . . . Machines Sabotaged . | . . . Overloaded Fab Kills . | . . . Hacking | -11 -10 -9 --------- Run | Yrd Mat Mat Machines Accessed 14 | . 7 7 Terminals 9 | . 4 5 Fabricators . | . . . Repair Stations 3 | . 1 2 Recycling Units 2 | . 2 . Scanalyzers . | . . . Garrison Access . | . . . Total Hacks 52 | . 21 31 Successful 31 | . 11 20 Failed 21 | . 10 11 Catastrophic 1 | . 1 . Database Lockouts . | . . . Manual 30 | . 14 16 Terminals 36 | . 11 25 Fabricators . | . . . Repair Stations 12 | . 6 6 Recycling Units 4 | . 4 . Scanalyzers . | . . . Garrison Access . | . . . Terminal Hacks 10 | . 1 9 Level Access Points 1 | . . 1 Machine Index 1 | . . 1 Terminal Index 2 | . 1 1 Locate Traps 2 | . . 2 Security Status 1 | . . 1 Zone Layout 3 | . . 3 Fabricator Hacks . | . . . Repair Station Hacks 11 | . 6 5 Scan Component 6 | . 3 3 Repair 5 | . 3 2 Recycling Unit Hacks . | . . . Scanalyzer . | . . . Garrison Access Hacks . | . . . Unauthorized Hacks 10 | . 4 6 Terminals 8 | . 2 6 Track 2 | . . 2 Assimilate 1 | . 1 . Botnet 2 | . . 2 Detonate 1 | . . 1 Operators 2 | . 1 1 Fabricators . | . . . Repair Stations . | . . . Recycling Units 2 | . 2 . Reject 1 | . 1 . Mask 1 | . 1 . Scanalyzers . | . . . Garrison Access . | . . . Data Cores Recovered . | . . . Used . | . . . Hacking Detections 11 | . 6 5 Full Trace Events 1 | . . 1 Feedback Events . | . . . Feedback Blocked . | . . . Robot Schematics Acquired . | . . . Robots Built . | . . . Authchips . | . . . Time . | . . . Total Robot Build Rating . | . . . Part Schematics Acquired . | . . . Parts Built . | . . . Authchips . | . . . Time . | . . . Total Part Build Rating . | . . . Part Studies Acquired . | . . . Parts Repaired 5 | . 3 2 Time 140 | . 78 62 Parts Recycled . | . . . Recycled Matter . | . . . Retrieved Matter . | . . . Retrieved Components . | . . . Parts Scanalyzed . | . . . Part Schematics Acquired . | . . . Parts Damaged . | . . . Bothacking | -11 -10 -9 ------------ Run | Yrd Mat Mat Used RIF Installer . | . . . Robots Hacked . | . . . Non-combat . | . . . Combat . | . . . Robot Hacks Applied . | . . . Relay Couplers Released . | . . . Fabnet Peak Effective % . | . . . Robots Rewired . | . . . Allies Hacked . | . . . Hacks Repelled . | . . . Allies | -11 -10 -9 -------- Run | Yrd Mat Mat Total Allies . | . . . Largest Group . | . . . Highest-Rated Group . | . . . Highest-Rated Ally . | . . . Total Orders . | . . . Ally Attacks . | . . . Total Damage . | . . . Kills . | . . . Allies Corrupted . | . . . Allies Melted . | . . . Intel | -11 -10 -9 ------- Run | Yrd Mat Mat Active Infowar (turns) 1359 | . 605 754 Sensors 137 | . . 137 Terrain 1222 | . 605 617 Robot Analysis Total . | . . . Derelict Logs Recovered . | . . . Drone Launches . | . . . Drone Recoveries . | . . . Exploration | -11 -10 -9 ------------- Run | Yrd Mat Mat Turns Passed 1692 | 216 613 863 Spaces Moved 822 | 111 309 402 Core 8 | 3 . 5 Treads . | . . . Legs 417 | 108 309 . Wheels . | . . . Hover . | . . . Flight 397 | . . 397 Fastest Speed 26 | 50 120 26 Average Speed 82 | 118 121 42 Slowest Speed 250 | 120 190 250 Overloaded Moves . | . . . Propulsion Burnouts . | . . . Robots Hopped 4 | . . 4 Potential Cave-ins . | . . . Cave-ins Triggered . | . . . Exploration Rate (%) 31 | 4 54 36 Regions Visited 2 Branch Regions . Pre-discovered Areas . | . . . Known Exits Taken . | . . . Unknown Exits Taken 2 | 1 1 . Scrap Searched . | . . . Spaces Dug 11 | . . 11 Terrain Destroyed 11 | . . 11 Melee . | . . . Projectile 11 | . . 11 AOE . | . . . Terrain Rammed . | . . . Walls Destroyed . | . . . Machines Disabled . | . . . Actions | -11 -10 -9 --------- Run | Yrd Mat Mat Total 1669 | 150 501 1018 Wait 699 | . 143 556 Move 812 | 110 308 394 Hop 4 | . . 4 Pick Up 18 | 6 7 5 Fast Attach 13 | 6 3 4 Attach 5 | . 1 4 Detach 1 | . . 1 Swap 17 | . 8 9 Drop 9 | 1 6 2 Fire 90 | 27 25 38 Melee . | . . . Ram 1 | . . 1 Kick . | . . . Crush . | . . . Escape Stasis . | . . . Rewire . | . . . Trap . | . . . Miscellaneous . | . . . Route ------- -11/Scrapyard -10/Materials (discovered 3 exits: *Mat x2 / [*Min]) -9/Materials (discovered 4 exits: Mat x3 / [*Min]) History --------- Turn | Location | Event 3 | -11/Scrapyard | Discovered new exit (range 16) 217 | -11/Scrapyard | Entered Materials 319 | -10/Materials | Build established: Mutant 416 | -10/Materials | Discovered new exit (range 15) 546 | -10/Materials | Discovered new exit (range 14) 615 | -10/Materials | Repaired Aluminum Leg 644 | -10/Materials | Repaired Aluminum Leg 672 | -10/Materials | Repaired Aluminum Leg 784 | -10/Materials | Discovered new exit (range 10) 830 | -10/Materials | Entered another Materials area 830 | -9/Materials | Evolved 2 slots: Propulsion x2 876 | -9/Materials | Repaired Broken Lgt. Ion Engine 1144 | -9/Materials | Build established: Sprinter 1300 | -9/Materials | Repaired Lgt. Assault Rifle 1588 | -9/Materials | Discovered new exit (range 14) 1649 | -9/Materials | Identified exit to Materials 1657 | -9/Materials | Core integrity fell below 50% 1683 | -9/Materials | Core integrity fell below 20% 1693 | -9/Materials | Lost 6 parts (1p4n1w) 1693 | -9/Materials | Destroyed by G-47 Trooper with Particle Gun Last Messages --------------- Downloaded coordinate data. >>Enumerate(Guards) Retrieving latest reported positions... Security request, restricting to local area... Found 7 active security squads. Downloaded coordinate data. >>Trojan(Track) Trojan loaded successfully. Testing... Tracking enabled and active. >>Access(Main) Found 3 level access points to Materials: (10,83) (12,6) (83,92) Map updated. 01662_ VTOL Module destroyed. 01688_ Y-45 Defender destroyed. 01688_ Switching to secondary target: Y-45 Defender. 01690_ Acquired 59 matter. Map ----- +----------------------------------------------------+ | ???????????????????????????????### #?# #####T# | | ?????????????????????????????????# #?#^ | | ?????????????????????????????????# #?# ^ | | ?????????????????????????????????# #?# ^ ^ | | ????????????????????????????????## ### ^ | | ????????????????????????????????# | | ????????????????????????????????# | | ????????????????????????????????# | | ????????????????????????????????# | | ????????????????????????????????# [#"T"###### | | ???????????????????????????????### ########??# | | ??????????????????????????????? # # """ #??# | | ???????????????????????????????" + + """ #??# | | ???????????????????????????????" # # """ #??# | | ???????????????????????????????" # # #??# | | ??????????????????????????????? ### # #??# | | ???????????????????????????????????????????????# | | ???????????????????????????#???????????????????# | | ???????????????????????????# ??????????????????# | | ???????????????????????????# ????????########### | | ???????????????????######### ??????? ##] # | | ???????????????????# ## #?????? ## # | | ???????????????????# # ###### ## """ # | | ???????????????????# + ## """"" # | | ???????????????????# """Y#? ## """"" + | | ???????????????????# """@#### ## """"" # | | ???????????????????# """ gg!! ## """ # | | ???????????????????##############"##+## # | | ????????????????????????????????# T ## ] # | | ?